Workbook

Sheet Sheet1
A1: 2012.01.17.00.00.33 | B1: 295.6 | C1: 295.6 | D1: 0.36 | F1: 2012-01-17 | G1: =AVERAGE(B1:B100) -> 295.607 | H1: =AVERAGE(C1:C100) -> 295.593
A2: 2012.01.17.00.01.09 | B2: 295.6 | C2: 295.6 | D2: 0.36 | F2: =F1+0.0416666667 -> 2012-01-17T01:00:00 | G2: =AVERAGE(B101:B200) -> 295.616 | H2: =AVERAGE(C101:C200) -> 295.59
A3: 2012.01.17.00.01.45 | B3: 295.6 | C3: 295.6 | D3: 0.36 | F3: =F2+0.0416666667 -> 2012-01-17T02:00:00 | G3: =AVERAGE(B201:B300) -> 295.622 | H3: =AVERAGE(C201:C300) -> 295.588
A4: 2012.01.17.00.02.21 | B4: 295.6 | C4: 295.6 | D4: 0.36 | F4: 2012-01-17T03:00:00 | G4: =AVERAGE(B301:B400) -> 295.62 | H4: =AVERAGE(C301:C400) -> 295.589
A5: 2012.01.17.00.02.57 | B5: 295.6 | C5: 295.6 | D5: 0.36 | F5: 2012-01-17T04:00:00 | G5: =AVERAGE(B401:B500) -> 295.614 | H5: =AVERAGE(C401:C500) -> 295.59
A6: 2012.01.17.00.03.33 | B6: 295.6 | C6: 295.6 | D6: 0.36 | F6: 2012-01-17T05:00:00 | G6: =AVERAGE(B501:B600) -> 295.618 | H6: =AVERAGE(C501:C600) -> 295.583
A7: 2012.01.17.00.04.09 | B7: 295.6 | C7: 295.6 | D7: 0.36 | F7: 2012-01-17T06:00:00 | G7: =AVERAGE(B601:B700) -> 295.604 | H7: =AVERAGE(C601:C700) -> 295.555
A8: 2012.01.17.00.04.45 | B8: 295.6 | C8: 295.6 | D8: 0.36 | F8: 2012-01-17T07:00:00 | G8: =AVERAGE(B701:B800) -> 295.613 | H8: =AVERAGE(C701:C800) -> 295.5
A9: 2012.01.17.00.05.21 | B9: 295.6 | C9: 295.6 | D9: 0.36 | F9: 2012-01-17T08:00:00 | G9: =AVERAGE(B801:B900) -> 294.7897959 | H9: =AVERAGE(C801:C900) -> 285.579798
A10: 2012.01.17.00.05.57 | B10: 295.6 | C10: 295.6 | D10: 0.36 | F10: 2012-01-17T09:00:00 | G10: =AVERAGE(B901:B1000) -> 295.855 | H10: =AVERAGE(C901:C1000) -> 295.829
A11: 2012.01.17.00.06.33 | B11: 295.6 | C11: 295.6 | D11: 0.36 | F11: 2012-01-17T10:00:00 | G11: =AVERAGE(B1001:B1100) -> 296.059 | H11: =AVERAGE(C1001:C1100) -> 296.073
A12: 2012.01.17.00.07.09 | B12: 295.6 | C12: 295.6 | D12: 0.36 | F12: 2012-01-17T11:00:00 | G12: =AVERAGE(B1101:B1200) -> 296.226 | H12: =AVERAGE(C1101:C1200) -> 296.26
A13: 2012.01.17.00.07.45 | B13: 295.6 | C13: 295.6 | D13: 0.36 | F13: 2012-01-17T12:00:00 | G13: =AVERAGE(B1201:B1300) -> 296.37 | H13: =AVERAGE(C1201:C1300) -> 296.422
A14: 2012.01.17.00.08.21 | B14: 295.6 | C14: 295.6 | D14: 0.36 | F14: 2012-01-17T13:00:00 | G14: =AVERAGE(B1301:B1400) -> 296.522 | H14: =AVERAGE(C1301:C1400) -> 296.583
A15: 2012.01.17.00.08.57 | B15: 295.6 | C15: 295.4 | D15: 0.36 | F15: 2012-01-17T14:00:00 | G15: =AVERAGE(B1401:B1500) -> 296.61 | H15: =AVERAGE(C1401:C1500) -> 296.701
A16: 2012.01.17.00.09.33 | B16: 295.6 | C16: 295.6 | D16: 0.36 | F16: 2012-01-17T15:00:00 | G16: =AVERAGE(B1501:B1600) -> 296.615 | H16: =AVERAGE(C1501:C1600) -> 296.706
A17: 2012.01.17.00.10.09 | B17: 295.6 | C17: 295.6 | D17: 0.36 | F17: 2012-01-17T16:00:00 | G17: =AVERAGE(B1601:B1700) -> 296.616 | H17: =AVERAGE(C1601:C1700) -> 296.675
A18: 2012.01.17.00.10.45 | B18: 295.6 | C18: 295.6 | D18: 0.36 | F18: 2012-01-17T17:00:00 | G18: =AVERAGE(B1701:B1800) -> 296.6 | H18: =AVERAGE(C1701:C1800) -> 296.607
A19: 2012.01.17.00.11.21 | B19: 295.6 | C19: 295.6 | D19: 0.36 | F19: 2012-01-17T18:00:00 | G19: =AVERAGE(B1801:B1900) -> 296.536 | H19: =AVERAGE(C1801:C1900) -> 296.589
A20: 2012.01.17.00.11.57 | B20: 295.6 | C20: 295.6 | D20: 0.36 | F20: 2012-01-17T19:00:00 | G20: =AVERAGE(B1901:B2000) -> 296.514 | H20: =AVERAGE(C1901:C2000) -> 296.59
A21: 2012.01.17.00.12.33 | B21: 295.6 | C21: 295.6 | D21: 0.36 | F21: 2012-01-17T20:00:00 | G21: =AVERAGE(B2001:B2100) -> 296.516 | H21: =AVERAGE(C2001:C2100) -> 296.58
A22: 2012.01.17.00.13.09 | B22: 295.6 | C22: 295.6 | D22: 0.36 | F22: 2012-01-17T21:00:00 | G22: =AVERAGE(B2101:B2200) -> 296.518 | H22: =AVERAGE(C2101:C2200) -> 296.575
A23: 2012.01.17.00.13.45 | B23: 295.6 | C23: 295.6 | D23: 0.36 | F23: 2012-01-17T22:00:00 | G23: =AVERAGE(B2300:B22201) -> 296.5 | H23: =AVERAGE(C2300:C22201) -> 296.5333333
A24: 2012.01.17.00.14.21 | B24: 295.6 | C24: 295.6 | D24: 0.36 | F24: 2012-01-17T23:00:00 | G24: =AVERAGE(B2301:B2400) -> 296.5 | H24: =AVERAGE(C2301:C2400) -> 296.5
A25: 2012.01.17.00.14.57 | B25: 295.6 | C25: 295.6 | D25: 0.36
A26: 2012.01.17.00.15.33 | B26: 295.6 | C26: 295.6 | D26: 0.36
A27: 2012.01.17.00.16.09 | B27: 295.6 | C27: 295.6 | D27: 0.36
A28: 2012.01.17.00.16.45 | B28: 295.6 | C28: 295.6 | D28: 0.36
A29: 2012.01.17.00.17.22 | B29: 295.6 | C29: 295.6 | D29: 0.36
A30: 2012.01.17.00.17.58 | B30: 295.6 | C30: 295.6 | D30: 0.36
A31: 2012.01.17.00.18.34 | B31: 295.6 | C31: 295.6 | D31: 0.36
A32: 2012.01.17.00.19.10 | B32: 295.6 | C32: 295.6 | D32: 0.36
A33: 2012.01.17.00.19.46 | B33: 295.6 | C33: 295.6 | D33: 0.36
A34: 2012.01.17.00.20.22 | B34: 295.8 | C34: 295.6 | D34: 0.36
A35: 2012.01.17.00.20.58 | B35: 295.6 | C35: 295.6 | D35: 0.36
A36: 2012.01.17.00.21.34 | B36: 295.6 | C36: 295.6 | D36: 0.36
A37: 2012.01.17.00.22.10 | B37: 295.6 | C37: 295.6 | D37: 0.36
A38: 2012.01.17.00.22.46 | B38: 295.6 | C38: 295.6 | D38: 0.36
A39: 2012.01.17.00.23.22 | B39: 295.6 | C39: 295.6 | D39: 0.36
A40: 2012.01.17.00.23.58 | B40: 295.6 | C40: 295.6 | D40: 0.36
A41: 2012.01.17.00.24.34 | B41: 295.6 | C41: 295.6 | D41: 0.36
A42: 2012.01.17.00.25.10 | B42: 295.6 | C42: 295.5 | D42: 0.36
A43: 2012.01.17.00.25.46 | B43: 295.6 | C43: 295.6 | D43: 0.36
A44: 2012.01.17.00.26.22 | B44: 295.6 | C44: 295.6 | D44: 0.36
A45: 2012.01.17.00.26.58 | B45: 295.6 | C45: 295.6 | D45: 0.36
A46: 2012.01.17.00.27.34 | B46: 295.8 | C46: 295.6 | D46: 0.36
A47: 2012.01.17.00.28.10 | B47: 295.6 | C47: 295.6 | D47: 0.36
A48: 2012.01.17.00.28.46 | B48: 295.6 | C48: 295.5 | D48: 0.36
A49: 2012.01.17.00.29.22 | B49: 295.6 | C49: 295.6 | D49: 0.36
A50: 2012.01.17.00.29.58 | B50: 295.6 | C50: 295.6 | D50: 0.36
A51: 2012.01.17.00.30.34 | B51: 295.6 | C51: 295.6 | D51: 0.36
A52: 2012.01.17.00.31.10 | B52: 295.6 | C52: 295.6 | D52: 0.36
A53: 2012.01.17.00.31.46 | B53: 295.6 | C53: 295.6 | D53: 0.36
A54: 2012.01.17.00.32.22 | B54: 295.6 | C54: 295.6 | D54: 0.36
A55: 2012.01.17.00.32.58 | B55: 295.6 | C55: 295.6 | D55: 0.36
A56: 2012.01.17.00.33.35 | B56: 295.6 | C56: 295.6 | D56: 0.36
A57: 2012.01.17.00.34.11 | B57: 295.6 | C57: 295.6 | D57: 0.36
A58: 2012.01.17.00.34.47 | B58: 295.6 | C58: 295.6 | D58: 0.36
A59: 2012.01.17.00.35.23 | B59: 295.6 | C59: 295.6 | D59: 0.36
A60: 2012.01.17.00.35.59 | B60: 295.6 | C60: 295.5 | D60: 0.36
A61: 2012.01.17.00.36.35 | B61: 295.6 | C61: 295.6 | D61: 0.36
A62: 2012.01.17.00.37.11 | B62: 295.6 | C62: 295.6 | D62: 0.36
A63: 2012.01.17.00.37.47 | B63: 295.6 | C63: 295.6 | D63: 0.36
A64: 2012.01.17.00.38.23 | B64: 295.6 | C64: 295.6 | D64: 0.36
A65: 2012.01.17.00.38.59 | B65: 295.6 | C65: 295.6 | D65: 0.36
A66: 2012.01.17.00.39.35 | B66: 295.6 | C66: 295.4 | D66: 0.36
A67: 2012.01.17.00.40.11 | B67: 295.6 | C67: 295.6 | D67: 0.36
A68: 2012.01.17.00.40.47 | B68: 295.6 | C68: 295.6 | D68: 0.36
A69: 2012.01.17.00.41.23 | B69: 295.6 | C69: 295.6 | D69: 0.36
A70: 2012.01.17.00.41.59 | B70: 295.6 | C70: 295.6 | D70: 0.36
A71: 2012.01.17.00.42.35 | B71: 295.6 | C71: 295.6 | D71: 0.36
A72: 2012.01.17.00.43.11 | B72: 295.6 | C72: 295.6 | D72: 0.36
A73: 2012.01.17.00.43.47 | B73: 295.6 | C73: 295.6 | D73: 0.36
A74: 2012.01.17.00.44.23 | B74: 295.6 | C74: 295.6 | D74: 0.36
A75: 2012.01.17.00.44.59 | B75: 295.6 | C75: 295.6 | D75: 0.36
A76: 2012.01.17.00.45.35 | B76: 295.6 | C76: 295.6 | D76: 0.36
A77: 2012.01.17.00.46.11 | B77: 295.6 | C77: 295.6 | D77: 0.36
A78: 2012.01.17.00.46.47 | B78: 295.6 | C78: 295.6 | D78: 0.36
A79: 2012.01.17.00.47.23 | B79: 295.6 | C79: 295.6 | D79: 0.36
A80: 2012.01.17.00.47.59 | B80: 295.6 | C80: 295.6 | D80: 0.36
A81: 2012.01.17.00.48.35 | B81: 295.6 | C81: 295.6 | D81: 0.36
A82: 2012.01.17.00.49.11 | B82: 295.6 | C82: 295.6 | D82: 0.36
A83: 2012.01.17.00.49.47 | B83: 295.6 | C83: 295.6 | D83: 0.36
A84: 2012.01.17.00.50.23 | B84: 295.6 | C84: 295.6 | D84: 0.36
A85: 2012.01.17.00.50.59 | B85: 295.6 | C85: 295.6 | D85: 0.36
A86: 2012.01.17.00.51.35 | B86: 295.6 | C86: 295.6 | D86: 0.36
A87: 2012.01.17.00.52.11 | B87: 295.6 | C87: 295.6 | D87: 0.36
A88: 2012.01.17.00.52.47 | B88: 295.6 | C88: 295.6 | D88: 0.36
A89: 2012.01.17.00.53.23 | B89: 295.7 | C89: 295.6 | D89: 0.36
A90: 2012.01.17.00.53.59 | B90: 295.6 | C90: 295.6 | D90: 0.36
A91: 2012.01.17.00.54.35 | B91: 295.6 | C91: 295.6 | D91: 0.36
A92: 2012.01.17.00.55.11 | B92: 295.6 | C92: 295.6 | D92: 0.36
A93: 2012.01.17.00.55.47 | B93: 295.6 | C93: 295.6 | D93: 0.36
A94: 2012.01.17.00.56.23 | B94: 295.6 | C94: 295.6 | D94: 0.36
A95: 2012.01.17.00.56.59 | B95: 295.8 | C95: 295.6 | D95: 0.36
A96: 2012.01.17.00.57.35 | B96: 295.6 | C96: 295.6 | D96: 0.36
A97: 2012.01.17.00.58.11 | B97: 295.6 | C97: 295.6 | D97: 0.36
A98: 2012.01.17.00.58.47 | B98: 295.6 | C98: 295.6 | D98: 0.36
A99: 2012.01.17.00.59.23 | B99: 295.6 | C99: 295.6 | D99: 0.36
A100: 2012.01.17.00.59.59 | B100: 295.6 | C100: 295.6 | D100: 0.36
A101: 2012.01.17.01.00.35 | B101: 295.6 | C101: 295.6 | D101: 0.36
A102: 2012.01.17.01.01.11 | B102: 295.6 | C102: 295.6 | D102: 0.36
A103: 2012.01.17.01.01.47 | B103: 295.6 | C103: 295.5 | D103: 0.36
A104: 2012.01.17.01.02.23 | B104: 295.6 | C104: 295.6 | D104: 0.36
A105: 2012.01.17.01.02.59 | B105: 295.6 | C105: 295.6 | D105: 0.36
A106: 2012.01.17.01.03.35 | B106: 295.6 | C106: 295.6 | D106: 0.36
A107: 2012.01.17.01.04.11 | B107: 295.8 | C107: 295.6 | D107: 0.36
A108: 2012.01.17.01.04.47 | B108: 295.6 | C108: 295.6 | D108: 0.36
A109: 2012.01.17.01.05.23 | B109: 295.6 | C109: 295.4 | D109: 0.36
A110: 2012.01.17.01.05.59 | B110: 295.6 | C110: 295.6 | D110: 0.36
A111: 2012.01.17.01.06.35 | B111: 295.6 | C111: 295.6 | D111: 0.36
A112: 2012.01.17.01.07.11 | B112: 295.6 | C112: 295.6 | D112: 0.36
A113: 2012.01.17.01.07.47 | B113: 295.8 | C113: 295.6 | D113: 0.36
A114: 2012.01.17.01.08.23 | B114: 295.6 | C114: 295.6 | D114: 0.36
A115: 2012.01.17.01.08.59 | B115: 295.6 | C115: 295.5 | D115: 0.36
A116: 2012.01.17.01.09.35 | B116: 295.6 | C116: 295.6 | D116: 0.36
A117: 2012.01.17.01.10.11 | B117: 295.6 | C117: 295.6 | D117: 0.36
A118: 2012.01.17.01.10.47 | B118: 295.6 | C118: 295.6 | D118: 0.36
A119: 2012.01.17.01.11.23 | B119: 295.8 | C119: 295.6 | D119: 0.36
A120: 2012.01.17.01.11.59 | B120: 295.6 | C120: 295.6 | D120: 0.36
A121: 2012.01.17.01.12.35 | B121: 295.6 | C121: 295.5 | D121: 0.36
A122: 2012.01.17.01.13.11 | B122: 295.6 | C122: 295.6 | D122: 0.36
A123: 2012.01.17.01.13.47 | B123: 295.6 | C123: 295.6 | D123: 0.36
A124: 2012.01.17.01.14.23 | B124: 295.6 | C124: 295.6 | D124: 0.36
A125: 2012.01.17.01.14.59 | B125: 295.6 | C125: 295.6 | D125: 0.36
A126: 2012.01.17.01.15.35 | B126: 295.6 | C126: 295.6 | D126: 0.36
A127: 2012.01.17.01.16.11 | B127: 295.6 | C127: 295.6 | D127: 0.36
A128: 2012.01.17.01.16.47 | B128: 295.6 | C128: 295.6 | D128: 0.36
A129: 2012.01.17.01.17.23 | B129: 295.6 | C129: 295.6 | D129: 0.36
A130: 2012.01.17.01.17.59 | B130: 295.6 | C130: 295.6 | D130: 0.36
A131: 2012.01.17.01.18.35 | B131: 295.6 | C131: 295.6 | D131: 0.36
A132: 2012.01.17.01.19.11 | B132: 295.6 | C132: 295.6 | D132: 0.36
A133: 2012.01.17.01.19.47 | B133: 295.6 | C133: 295.6 | D133: 0.36
A134: 2012.01.17.01.20.23 | B134: 295.6 | C134: 295.6 | D134: 0.36
A135: 2012.01.17.01.21.00 | B135: 295.6 | C135: 295.6 | D135: 0.36
A136: 2012.01.17.01.21.36 | B136: 295.6 | C136: 295.6 | D136: 0.36
A137: 2012.01.17.01.22.12 | B137: 295.6 | C137: 295.6 | D137: 0.36
A138: 2012.01.17.01.22.48 | B138: 295.6 | C138: 295.6 | D138: 0.36
A139: 2012.01.17.01.23.24 | B139: 295.6 | C139: 295.6 | D139: 0.35
A140: 2012.01.17.01.24.00 | B140: 295.6 | C140: 295.6 | D140: 0.36
A141: 2012.01.17.01.24.36 | B141: 295.6 | C141: 295.6 | D141: 0.36
A142: 2012.01.17.01.25.12 | B142: 295.6 | C142: 295.6 | D142: 0.36
A143: 2012.01.17.01.25.48 | B143: 295.6 | C143: 295.6 | D143: 0.36
A144: 2012.01.17.01.26.24 | B144: 295.6 | C144: 295.6 | D144: 0.36
A145: 2012.01.17.01.27.00 | B145: 295.6 | C145: 295.6 | D145: 0.36
A146: 2012.01.17.01.27.36 | B146: 295.6 | C146: 295.6 | D146: 0.36
A147: 2012.01.17.01.28.12 | B147: 295.6 | C147: 295.6 | D147: 0.36
A148: 2012.01.17.01.28.48 | B148: 295.6 | C148: 295.6 | D148: 0.36
A149: 2012.01.17.01.29.24 | B149: 295.6 | C149: 295.6 | D149: 0.36
A150: 2012.01.17.01.30.00 | B150: 295.8 | C150: 295.6 | D150: 0.36
A151: 2012.01.17.01.30.36 | B151: 295.6 | C151: 295.6 | D151: 0.36
A152: 2012.01.17.01.31.12 | B152: 295.6 | C152: 295.6 | D152: 0.36
A153: 2012.01.17.01.31.48 | B153: 295.6 | C153: 295.6 | D153: 0.36
A154: 2012.01.17.01.32.24 | B154: 295.6 | C154: 295.6 | D154: 0.36
A155: 2012.01.17.01.33.00 | B155: 295.6 | C155: 295.6 | D155: 0.36
A156: 2012.01.17.01.33.36 | B156: 295.8 | C156: 295.6 | D156: 0.36
A157: 2012.01.17.01.34.12 | B157: 295.6 | C157: 295.6 | D157: 0.36
A158: 2012.01.17.01.34.48 | B158: 295.6 | C158: 295.5 | D158: 0.36
A159: 2012.01.17.01.35.24 | B159: 295.6 | C159: 295.6 | D159: 0.36
A160: 2012.01.17.01.36.00 | B160: 295.6 | C160: 295.6 | D160: 0.36
A161: 2012.01.17.01.36.36 | B161: 295.6 | C161: 295.6 | D161: 0.36
A162: 2012.01.17.01.37.12 | B162: 295.8 | C162: 295.6 | D162: 0.36
A163: 2012.01.17.01.37.48 | B163: 295.6 | C163: 295.6 | D163: 0.36
A164: 2012.01.17.01.38.24 | B164: 295.6 | C164: 295.5 | D164: 0.36
A165: 2012.01.17.01.39.00 | B165: 295.6 | C165: 295.6 | D165: 0.36
A166: 2012.01.17.01.39.36 | B166: 295.6 | C166: 295.6 | D166: 0.36
A167: 2012.01.17.01.40.12 | B167: 295.6 | C167: 295.6 | D167: 0.36
A168: 2012.01.17.01.40.48 | B168: 295.8 | C168: 295.6 | D168: 0.35
A169: 2012.01.17.01.41.24 | B169: 295.6 | C169: 295.6 | D169: 0.36
A170: 2012.01.17.01.42.00 | B170: 295.6 | C170: 295.5 | D170: 0.36
A171: 2012.01.17.01.42.36 | B171: 295.6 | C171: 295.6 | D171: 0.36
A172: 2012.01.17.01.43.12 | B172: 295.6 | C172: 295.6 | D172: 0.36
A173: 2012.01.17.01.43.48 | B173: 295.6 | C173: 295.6 | D173: 0.36
A174: 2012.01.17.01.44.24 | B174: 295.8 | C174: 295.6 | D174: 0.36
A175: 2012.01.17.01.45.00 | B175: 295.6 | C175: 295.6 | D175: 0.36
A176: 2012.01.17.01.45.36 | B176: 295.6 | C176: 295.5 | D176: 0.36
A177: 2012.01.17.01.46.12 | B177: 295.6 | C177: 295.6 | D177: 0.36
A178: 2012.01.17.01.46.48 | B178: 295.6 | C178: 295.6 | D178: 0.36
A179: 2012.01.17.01.47.24 | B179: 295.6 | C179: 295.6 | D179: 0.36
A180: 2012.01.17.01.48.00 | B180: 295.6 | C180: 295.6 | D180: 0.36
A181: 2012.01.17.01.48.36 | B181: 295.6 | C181: 295.6 | D181: 0.36
A182: 2012.01.17.01.49.12 | B182: 295.6 | C182: 295.5 | D182: 0.36
A183: 2012.01.17.01.49.48 | B183: 295.6 | C183: 295.6 | D183: 0.36
A184: 2012.01.17.01.50.24 | B184: 295.6 | C184: 295.6 | D184: 0.36
A185: 2012.01.17.01.51.00 | B185: 295.6 | C185: 295.6 | D185: 0.36
A186: 2012.01.17.01.51.36 | B186: 295.6 | C186: 295.6 | D186: 0.35
A187: 2012.01.17.01.52.12 | B187: 295.6 | C187: 295.6 | D187: 0.36
A188: 2012.01.17.01.52.48 | B188: 295.6 | C188: 295.6 | D188: 0.36
A189: 2012.01.17.01.53.24 | B189: 295.6 | C189: 295.6 | D189: 0.36
A190: 2012.01.17.01.54.00 | B190: 295.6 | C190: 295.6 | D190: 0.36
A191: 2012.01.17.01.54.36 | B191: 295.6 | C191: 295.6 | D191: 0.36
A192: 2012.01.17.01.55.12 | B192: 295.6 | C192: 295.6 | D192: 0.36
A193: 2012.01.17.01.55.48 | B193: 295.6 | C193: 295.6 | D193: 0.36
A194: 2012.01.17.01.56.24 | B194: 295.6 | C194: 295.6 | D194: 0.36
A195: 2012.01.17.01.57.00 | B195: 295.6 | C195: 295.6 | D195: 0.36
A196: 2012.01.17.01.57.36 | B196: 295.6 | C196: 295.6 | D196: 0.36
A197: 2012.01.17.01.58.12 | B197: 295.6 | C197: 295.6 | D197: 0.36
A198: 2012.01.17.01.58.48 | B198: 295.6 | C198: 295.6 | D198: 0.35
A199: 2012.01.17.01.59.24 | B199: 295.6 | C199: 295.6 | D199: 0.36
A200: 2012.01.17.02.00.00 | B200: 295.6 | C200: 295.6 | D200: 0.36
... 2102 more rows

Sheet Sheet2

Sheet Sheet3
